fUSD/lending_fUSD_20260203
["ID","MTS","AMOUNT","RATE_DAILY","PERIOD"]
[404423734,1770130240111,-500.0,0.00013698,2]
[404423735,1770130240122,-500.0,0.00013698,2]
[404423736,1770130240133,-500.0,0.00013698,2]
[404423737,1770130240142,-500.0,0.00013698,2]
[404423738,1770130240151,-500.0,0.00013698,2]
[404423739,1770130240160,-500.0,0.00013698,2]
[404423740,1770130240169,-199.38200897,0.00013698,2]
[404423741,1770130240178,-500.0,0.00013698,2]
[404423742,1770130240187,-500.0,0.00013698,2]
[404423743,1770130240196,-500.0,0.00013698,2]
[404423744,1770130240205,-452.02134495,0.00013698,2]
[404423745,1770130240214,-500.0,0.00013698,2]
[404423746,1770130240224,-500.0,0.00013698,2]
[404423747,1770130240233,-168.77902155,0.00013698,2]
[404423748,1770130240243,-500.0,0.00013698,2]
[404423749,1770130240252,-500.0,0.00013698,2]
[404423750,1770130240261,-500.0,0.00013698,2]
[404423751,1770130240270,-500.0,0.00013698,2]
[404423752,1770130240282,-500.0,0.00013698,2]
[404423753,1770130240291,-500.0,0.00013698,2]
[404423754,1770130240300,-500.0,0.00013698,2]
[404423755,1770130240310,-500.0,0.00013698,2]
[404423756,1770130240320,-500.0,0.00013698,2]
[404423757,1770130240330,-500.0,0.00013698,2]
[404423758,1770130240339,-500.0,0.00013698,2]
[404423759,1770130240349,-500.0,0.00013698,2]
[404423760,1770130240358,-500.0,0.00013698,2]
[404423761,1770130240367,-500.0,0.00013698,2]
[404423762,1770130240378,-500.0,0.00013698,2]
[404423763,1770130240388,-500.0,0.00013698,2]
[404423764,1770130240397,-599.11588893,0.00013698,2]
[404423765,1770130240408,-500.0,0.00013698,2]
[404423766,1770130240420,-500.0,0.00013698,2]
[404423767,1770130240429,-500.0,0.00013698,2]
[404423768,1770130240440,-500.0,0.00013698,2]
[404423769,1770130240450,-500.0,0.00013698,2]
[404423770,1770130240463,-500.0,0.00013698,2]
[404423771,1770130240474,-500.0,0.00013698,2]
[404423772,1770130240485,-500.0,0.00013698,2]
[404423773,1770130240497,-500.0,0.00013698,2]
[404423774,1770130240508,-222.83714718,0.00013698,2]
[404423775,1770130240518,-500.0,0.00013698,2]
[404423776,1770130240529,-151.96294497,0.00013698,2]
[404423777,1770130240538,-500.0,0.00013698,2]
[404423778,1770130240547,-500.0,0.00013698,2]
[404423779,1770130240556,-500.0,0.00013698,2]
[404423780,1770130240568,-500.0,0.00013698,2]
[404423781,1770130240577,-500.0,0.00013698,2]
[404423782,1770130240586,-500.0,0.00013698,2]
[404423783,1770130240595,-500.0,0.00013698,2]
[404423784,1770130240605,-500.0,0.00013698,2]
[404423785,1770130240614,-500.0,0.00013698,2]
[404423786,1770130240623,-500.0,0.00013698,2]
[404423787,1770130240632,-500.0,0.00013698,2]
[404423788,1770130240642,-500.0,0.00013698,2]
[404423789,1770130240653,-500.0,0.00013698,2]
[404423790,1770130240662,-500.0,0.00013698,2]
[404423791,1770130240670,-500.0,0.00013698,2]
[404423792,1770130240680,-500.0,0.00013698,2]
[404423793,1770130240692,-500.0,0.00013698,2]
[404423794,1770130240701,-242.43769509,0.00013698,2]
[404423795,1770130240710,-500.0,0.00013698,2]
[404423796,1770130240719,-500.0,0.00013698,2]
[404423797,1770130240727,-500.0,0.00013698,2]
[404423798,1770130240736,-500.0,0.00013698,2]
[404423799,1770130240746,-500.0,0.00013698,2]
[404423800,1770130240755,-587.89105672,0.00013698,2]
[404423801,1770130240764,-500.0,0.00013698,2]
[404423802,1770130240772,-500.0,0.00013698,2]
[404423803,1770130240783,-500.0,0.00013698,2]
[404423804,1770130240792,-500.0,0.00013698,2]
[404423805,1770130240802,-500.0,0.00013698,2]
[404423806,1770130240811,-500.0,0.00013698,2]
[404423807,1770130240820,-500.0,0.00013698,2]
[404423808,1770130240829,-500.0,0.00013698,2]
[404423809,1770130240838,-500.0,0.00013698,2]
[404423810,1770130240848,-500.0,0.00013698,2]
[404423811,1770130240857,-500.0,0.00013698,2]
[404423812,1770130240866,-500.0,0.00013698,2]
[404423813,1770130240877,-340.45778603,0.00013698,2]
[404423814,1770130240887,-500.0,0.00013698,2]
[404423815,1770130240898,-500.0,0.00013698,2]
[404423816,1770130240907,-500.0,0.00013698,2]
[404423817,1770130240918,-500.0,0.00013698,2]
[404423818,1770130240927,-500.0,0.00013698,2]
[404423819,1770130240936,-500.0,0.00013698,2]
[404423820,1770130240946,-500.0,0.00013698,2]
[404423821,1770130240956,-500.0,0.00013698,2]
[404423822,1770130240965,-500.0,0.00013698,2]
[404423823,1770130240974,-620.13152007,0.00013698,2]
[404423824,1770130240983,-545.50641599,0.00013698,2]
[404423825,1770130240993,-500.0,0.00013698,2]
[404423826,1770130241003,-500.0,0.00013698,2]
[404423827,1770130241013,-500.0,0.00013698,2]
[404423828,1770130241023,-500.0,0.00013698,2]
[404423829,1770130241033,-500.0,0.00013698,2]
[404423830,1770130241042,-500.0,0.00013698,2]
[404423831,1770130241051,-500.0,0.00013698,2]
[404423832,1770130241060,-500.0,0.00013698,2]
[404423833,1770130241070,-500.0,0.00013698,2]
[404423834,1770130241078,-500.0,0.00013698,2]
[404423835,1770130241087,-500.0,0.00013698,2]
[404423836,1770130241096,-500.0,0.00013698,2]
[404423837,1770130241105,-500.0,0.00013698,2]
[404423838,1770130241114,-500.0,0.00013698,2]
[404423839,1770130241123,-500.0,0.00013698,2]
[404423840,1770130241133,-500.0,0.00013698,2]
[404423841,1770130241143,-548.33821979,0.00013698,2]
[404423842,1770130241152,-500.0,0.00013698,2]
[404423843,1770130241162,-500.0,0.00013698,2]
[404423844,1770130241171,-500.0,0.00013698,2]
[404423845,1770130241180,-500.0,0.00013698,2]
[404423846,1770130241189,-500.0,0.00013698,2]
[404423847,1770130241198,-500.0,0.00013698,2]
[404423848,1770130241207,-500.0,0.00013698,2]
[404423849,1770130241217,-500.0,0.00013698,2]
[404423850,1770130241226,-500.0,0.00013698,2]
[404423851,1770130241236,-500.0,0.00013698,2]
[404423852,1770130241245,-500.0,0.00013698,2]
[404423853,1770130241254,-500.0,0.00013698,2]
[404423854,1770130241264,-500.0,0.00013698,2]
[404423855,1770130241274,-500.0,0.00013698,2]
[404423856,1770130241286,-500.0,0.00013698,2]
[404423857,1770130241295,-500.0,0.00013698,2]
[404423858,1770130241305,-293.83360739,0.00013698,2]
[404423859,1770130241314,-500.0,0.00013698,2]
[404423860,1770130241323,-500.0,0.00013698,2]
[404423861,1770130241333,-500.0,0.00013698,2]
[404423862,1770130241342,-500.0,0.00013698,2]
[404423863,1770130241351,-500.0,0.00013698,2]
[404423864,1770130241360,-500.0,0.00013698,2]
[404423865,1770130241370,-500.0,0.00013698,2]
[404423866,1770130241379,-500.0,0.00013698,2]
[404423867,1770130241388,-500.0,0.00013698,2]
[404423868,1770130241397,-500.0,0.00013698,2]
[404423869,1770130241407,-500.0,0.00013698,2]
[404423870,1770130241419,-500.0,0.00013698,2]
[404423871,1770130241430,-500.0,0.00013698,2]
[404423872,1770130241440,-500.0,0.00013698,2]
[404423873,1770130241452,-500.0,0.00013698,2]
[404423874,1770130241462,-595.81274949,0.00013698,2]
[404423875,1770130241472,-500.0,0.00013698,2]
[404423876,1770130241483,-500.0,0.00013698,2]
[404423877,1770130241493,-505.6105481,0.00013698,2]
[404423878,1770130241502,-500.0,0.00013698,2]
[404423879,1770130241512,-500.0,0.00013698,2]
[404423880,1770130241522,-500.0,0.00013698,2]
[404423881,1770130241535,-500.0,0.00013698,2]
[404423882,1770130241544,-500.0,0.00013698,2]
[404423883,1770130241553,-500.0,0.00013698,2]
[404423884,1770130241562,-500.0,0.00013698,2]
[404423885,1770130241571,-500.0,0.00013698,2]
[404423886,1770130241581,-500.0,0.00013698,2]
[404423887,1770130241590,-500.0,0.00013698,2]
[404423888,1770130241599,-500.0,0.00013698,2]
[404423889,1770130241609,-500.0,0.00013698,2]
[404423890,1770130241618,-500.0,0.00013698,2]
[404423891,1770130241628,-500.0,0.00013698,2]
[404423892,1770130241637,-500.0,0.00013698,2]
[404423893,1770130241647,-500.0,0.00013698,2]
[404423894,1770130241657,-500.0,0.00013698,2]
[404423895,1770130241667,-500.0,0.00013698,2]
[404423896,1770130241676,-500.0,0.00013698,2]
[404423897,1770130241686,-500.0,0.00013698,2]
[404423898,1770130241695,-500.0,0.00013698,2]
[404423899,1770130241705,-500.0,0.00013698,2]
[404423900,1770130241713,-500.0,0.00013698,2]
[404423901,1770130241722,-500.0,0.00013698,2]
[404423902,1770130241731,-509.06540724,0.00013698,2]
[404423903,1770130241742,-500.0,0.00013698,2]
[404423904,1770130241751,-500.0,0.00013698,2]
[404423905,1770130241760,-500.0,0.00013698,2]
[404423906,1770130241769,-500.0,0.00013698,2]
[404423907,1770130241781,-500.0,0.00013698,2]
[404423908,1770130241790,-500.0,0.00013698,2]
[404423909,1770130241799,-500.0,0.00013698,2]
[404423910,1770130241808,-500.0,0.00013698,2]
[404423911,1770130241817,-500.0,0.00013698,2]
[404423912,1770130241831,-500.0,0.00013698,2]
[404423913,1770130241839,-558.31479011,0.00013698,2]
[404423914,1770130241848,-500.0,0.00013698,2]
[404423915,1770130241858,-592.50627165,0.00013698,2]
[404423916,1770130241867,-500.0,0.00013698,2]
[404423917,1770130241876,-500.0,0.00013698,2]
[404423918,1770130241886,-200.0,0.00013699,2]
[404423919,1770130241895,-9681.08,0.00013699,2]
[404423920,1770130241904,-5521.08,0.00013699,2]
[404423921,1770130241915,-500.0,0.000137,2]
[404423922,1770130241924,-500.0,0.000137,2]
[404423923,1770130241934,-500.0,0.000137,2]
[404423924,1770130241943,-260.20893212,0.000137,2]
[404423925,1770130241952,-500.0,0.000137,2]
[404423926,1770130241962,-500.0,0.000137,2]
[404423927,1770130241971,-500.0,0.000137,2]
[404423928,1770130241980,-151.0,0.00013702,2]
[404423929,1770130241989,-151.0,0.00013702,2]
[404423930,1770130241998,-151.0,0.00013702,2]
[404423931,1770130242008,-151.0,0.00013702,2]
[404423932,1770130242017,-1311.0,0.00013735,2]
[404423933,1770130242030,-5964.0,0.00013735,2]
[404423934,1770130242040,-1386.37,0.00013783,2]
[404423935,1770130242049,-1600.0,0.000138,2]
[404423936,1770130242058,-1195.29,0.00013955,2]
[404423937,1770130242067,-280.2319593,0.00013999,2]
[404423938,1770130242077,-1195.29,0.00014229,2]
[404423939,1770130242086,-1000.0,0.00014248,2]
[404423940,1770130242095,-1000.0,0.00014248,2]
[404423941,1770130242105,-500.0,0.00014248,2]
[404423942,1770130242114,-1000.0,0.00014248,2]
[404423943,1770130242123,-150.0,0.00014353,7]
[404423944,1770130242132,-658.611442,0.00014353,7]
[404423945,1770130242142,-1167.222885,0.00014353,7]
[404423946,1770130242151,-1675.834327,0.00014353,7]
[404423947,1770130242160,-2184.44577,0.00014353,7]
[404423948,1770130242169,-2693.057212,0.00014353,7]
[404423949,1770130242178,-3201.668655,0.00014353,7]
[404423950,1770130242187,-3710.280097,0.00014353,7]
[404423951,1770130242196,-4218.89154,0.00014353,7]
[404423952,1770130242205,-4727.502982,0.00014353,7]
[404423953,1770130242214,-5521.08,0.00014384,2]
[404423954,1770130242224,-7934.45813047,0.00014485,2]
[404423955,1770130242233,-1195.29,0.00014503,2]
[404423956,1770130242242,-160.0,0.00014532,2]
[404423957,1770130242251,-1000.0,0.00014625,2]
[404423958,1770130242261,-1000.0,0.00014625,2]
[404423959,1770130242271,-1195.29,0.00014777,2]
[404423960,1770130242281,-369.98194845,0.00014796,2]
[404423961,1770130242290,-495.7739334,0.00014796,2]
[404423962,1770130242300,-1500.0,0.00014796,2]
[404423963,1770130242310,-7243.61,0.00014847,2]
[404423964,1770130242319,-285.87896122,0.000149,2]
[404423965,1770130242329,-3069.31848682,0.00014973,2]
[404423966,1770130242338,-150.0,0.00014999,2]
[404423967,1770130242348,-250.0,0.00015,2]
[404423968,1770130242358,-1195.29,0.00015051,2]
[404423969,1770130242367,-900.0,0.00015068,2]
[404423970,1770130242376,-5521.08,0.00015068,2]
[404423971,1770130242386,-500.0,0.00015233,2]
[404423972,1770130242395,-1195.31834379,0.00015325,2]
[404423973,1770130242405,-2000.0,0.00015344,2]
[404423974,1770130242418,-500.0,0.00015507,2]
[404423975,1770130242427,-1600.0,0.00015526,2]
[404423976,1770130242436,-5521.08,0.00015753,2]
[404423977,1770130242445,-500.0,0.00015869,2]
[404423978,1770130242455,-2500.0,0.00015892,2]
[404423979,1770130242465,-5000.0,0.0001596,2]
[404423980,1770130242474,-150.0,0.00015999,2]
[404423981,1770130242484,-484.03,0.00016094,2]
[404423982,1770130242494,-4438.32,0.00016116,2]
[404423983,1770130242503,-500.0,0.00016247,2]
[404423984,1770130242513,-500.0,0.00016329,2]
[404423985,1770130242522,-839.0,0.000164,2]
[404423986,1770130242533,-3069.31848682,0.00016436,2]
[404423987,1770130242542,-200.0,0.00016438,2]
[404423988,1770130242551,-200.0,0.00016438,3]
[404423989,1770130242560,-200.0,0.00016438,4]
[404423990,1770130242570,-200.0,0.00016438,5]
[404423991,1770130242581,-200.0,0.00016438,6]
[404423992,1770130242590,-200.0,0.00016438,7]
[404423993,1770130242599,-200.0,0.00016438,8]
[404423994,1770130242609,-200.0,0.00016438,9]
[404423995,1770130242618,-200.0,0.00016438,10]
[404423996,1770130242628,-200.0,0.00016438,11]
[404423997,1770130242637,-200.0,0.00016438,12]
[404423998,1770130242646,-200.0,0.00016438,13]
[404423999,1770130242655,-347.38207191,0.00016438,14]
[404424000,1770130242664,-500.0,0.00016438,2]
[404424001,1770130242674,-571.15632912,0.00016438,2]
[404424002,1770130242683,-500.0,0.00016438,2]
[404424003,1770130242693,-500.0,0.00016438,2]
[404424004,1770130242702,-500.0,0.00016438,2]
[404424005,1770130242711,-500.0,0.00016438,2]
[404424006,1770130242720,-500.0,0.00016438,2]
[404424007,1770130242729,-370.27796662,0.00016438,2]
[404424008,1770130242738,-500.0,0.00016438,2]
[404424009,1770130242747,-500.0,0.00016438,2]
[404424010,1770130242756,-500.0,0.00016438,2]
[404424011,1770130242765,-500.0,0.00016438,2]
[404424012,1770130242774,-500.0,0.00016438,2]
[404424013,1770130242785,-500.0,0.00016438,2]
[404424014,1770130242794,-500.0,0.00016438,2]
[404424015,1770130242804,-500.0,0.00016438,2]
[404424016,1770130242813,-500.0,0.00016438,2]
[404424017,1770130242822,-500.0,0.00016438,2]
[404424018,1770130242831,-500.0,0.00016438,2]
[404424019,1770130242840,-500.0,0.00016438,2]
[404424020,1770130242851,-500.0,0.00016438,2]
[404424021,1770130242860,-500.0,0.00016438,2]
[404424022,1770130242870,-500.0,0.00016438,2]
[404424023,1770130242879,-500.0,0.00016438,2]
[404424024,1770130242889,-500.0,0.00016438,2]
[404424025,1770130242898,-500.0,0.00016438,2]
[404424026,1770130242908,-500.0,0.00016438,2]
[404424027,1770130242917,-500.0,0.00016438,2]
[404424028,1770130242927,-500.0,0.00016438,2]
[404424029,1770130242936,-500.0,0.00016438,2]
[404424030,1770130242947,-500.0,0.00016438,2]
[404424031,1770130242956,-200.0,0.00016438,2]
[404424032,1770130242966,-900.0,0.00016438,2]
[404424033,1770130242975,-5521.08,0.00016438,2]
[404424034,1770130242984,-3000.0,0.0001644,2]
[404424035,1770130242993,-22705.7828949,0.00016522,2]
[404424036,1770130243002,-3240.0,0.00016584,2]
[404424037,1770130243012,-3258.33,0.00016584,2]
[404424038,1770130243021,-836.0,0.0001672,2]
[404424039,1770130243032,-193.84,0.00016732,2]
[404424040,1770130243042,-1500.0,0.000168,2]
[404424041,1770130243051,-1000.0,0.00016856,7]
[404424042,1770130243061,-500.0,0.00016956,2]
[404424043,1770130243070,-20322.929095,0.00016963,7]
[404424044,1770130243079,-3500.0,0.00016988,2]
[404424045,1770130243089,-150.0,0.00016999,2]
[404424046,1770130243099,-300.0,0.00017,2]
[404424047,1770130243108,-160.0,0.00017,7]
[404424048,1770130243118,-209.40437684,0.00017099,2]
[404424049,1770130243127,-160.0,0.00017099,2]
[404424050,1770130243136,-174.61919141,0.00017099,2]
[404424051,1770130243146,-277.35679052,0.00017099,2]
[404424052,1770130243156,-500.0,0.00017099,2]
[404424053,1770130243165,-500.0,0.00017099,2]
[404424054,1770130243175,-500.0,0.00017099,2]
[404424055,1770130243184,-500.0,0.00017099,2]
[404424056,1770130243194,-500.0,0.00017099,2]
[404424057,1770130243203,-500.0,0.00017099,2]
[404424058,1770130243212,-500.0,0.00017099,2]
[404424059,1770130243221,-500.0,0.00017099,2]
[404424060,1770130243231,-500.0,0.00017099,2]
[404424061,1770130243241,-500.0,0.00017099,2]
[404424062,1770130243250,-500.0,0.00017099,2]
[404424063,1770130243260,-500.0,0.00017099,2]
[404424064,1770130243269,-642.81998071,0.00017099,2]
[404424065,1770130243279,-200.0,0.00017099,2]
[404424066,1770130243291,-209.40437684,0.00017099,2]
[404424068,1770130243300,-322.6107,0.00017099,2]
[404424070,1770130243310,-578.20924308,0.00017099,2]
[404424072,1770130243320,-209.40437684,0.00017099,2]
[404424073,1770130243329,-721.12765535,0.00017099,2]
[404424074,1770130243338,-217.15233878,0.00017154,2]
[404424075,1770130243348,-2000.0,0.000172,2]
[404424076,1770130243357,-225.18697532,0.00017209,2]
[404424077,1770130243367,-1600.0,0.00017251,2]
[404424078,1770130243377,-1000.0,0.0001726,2]
[404424079,1770130243386,-233.51889341,0.00017264,2]
[404424080,1770130243395,-151.0,0.00017287,2]
[404424081,1770130243405,-4013.0,0.0001729,2]
[404424082,1770130243415,-242.15909246,0.00017319,2]
[404424083,1770130243427,-484.03,0.00017342,2]
[404424084,1770130243437,-2484.09,0.00017352,2]
[404424085,1770130243447,-891.0,0.0001736,2]
[404424087,1770130243456,-251.11897888,0.00017374,2]
[404424089,1770130243466,-4013.0,0.00017426,2]
[404424095,1770130243687,-260.4103811,0.00017429,2]
[404424096,1770130243698,-1233.94,0.00017462,2]
[404424097,1770130243708,-1233.94,0.00017462,2]
[404424098,1770130243719,-1233.94,0.00017462,2]
[404424099,1770130243729,-1233.94,0.00017462,2]
[404424100,1770130243739,-1233.94,0.00017462,2]
[404424101,1770130243749,-1995.67,0.00017462,2]
[404424102,1770130243758,-270.0455652,0.00017484,2]
[404424103,1770130243768,-1100.0,0.000175,6]
[404424104,1770130243778,-200.0,0.000175,6]
[404424105,1770130243790,-30721.7295,0.00017522,2]
[404424106,1770130243799,-1000.0,0.00017534,2]
[404424107,1770130243809,-4000.0,0.00017536,2]
[404424108,1770130243819,-280.03725112,0.00017539,2]
[404424109,1770130243829,-5888.0,0.00017548,2]
[404424110,1770130243838,-290.39862941,0.00017594,2]
[404424111,1770130243849,-2000.0,0.000176,2]
[404424112,1770130243858,-1100.0,0.000176,6]
[404424113,1770130243868,-200.0,0.000176,6]
[404424114,1770130243878,-152.0,0.00017607,3]
[404424115,1770130243887,-4013.0,0.00017617,2]
[404424116,1770130243897,-604.26338719,0.0001764,2]
[404424117,1770130243906,-209.40437685,0.00017647,2]
[404424118,1770130243916,-181.08010149,0.00017647,2]
[404424119,1770130243925,-287.61899177,0.00017647,2]
[404424120,1770130243934,-200.0,0.00017647,2]
[404424121,1770130243943,-209.40437685,0.00017647,2]
[404424122,1770130243952,-301.1433787,0.00017649,2]
[404424123,1770130243962,-2836.0,0.0001768,2]
[404424124,1770130243971,-1100.0,0.000177,6]
[404424125,1770130243981,-200.0,0.000177,6]
[404424126,1770130243991,-2836.0,0.0001773,2]
[404424127,1770130244000,-157.95285948,0.00017737,2]
[404424128,1770130244010,-150.0,0.00017751,2]
[404424129,1770130244019,-150.0,0.00017752,7]
[404424130,1770130244029,-310.127081,0.00017752,7]
[404424131,1770130244042,-470.254162,0.00017752,7]
[404424132,1770130244052,-630.381243,0.00017752,7]
[404424133,1770130244061,-790.508324,0.00017752,7]
[404424134,1770130244071,-950.635405,0.00017752,7]
[404424135,1770130244081,-1110.762486,0.00017752,7]
[404424136,1770130244090,-1270.889567,0.00017752,7]
[404424137,1770130244100,-1431.016648,0.00017752,7]
[404424138,1770130244110,-1591.143729,0.00017752,7]
[404424139,1770130244120,-1000.0,0.00017755,2]
[404424140,1770130244129,-1000.0,0.00017756,2]
[404424141,1770130244139,-150.0,0.00017766,2]
[404424142,1770130244148,-150.0,0.00017787,2]
[404424143,1770130244158,-1000.0,0.00017799,2]
[404424144,1770130244168,-1100.0,0.000178,6]
[404424145,1770130244178,-200.0,0.000178,6]
[404424146,1770130244188,-1000.0,0.00017808,2]
[404424147,1770130244197,-1000.0,0.00017819,2]
[404424148,1770130244207,-1000.0,0.0001782,2]
[404424149,1770130244216,-2000.0,0.0001782,2]
[404424150,1770130244226,-2000.0,0.0001782,2]
[404424151,1770130244235,-150.0,0.00017855,2]
[404424152,1770130244245,-200.0,0.00017856,2]
[404424153,1770130244255,-150.0,0.00017862,2]
[404424154,1770130244264,-150.0,0.00017874,2]
[404424155,1770130244274,-1000.0,0.00017898,2]
[404424156,1770130244285,-5000.0,0.000179,2]
[404424157,1770130244295,-1600.0,0.000179,6]
[404424158,1770130244304,-400.0,0.000179,6]
[404424159,1770130244313,-2589.9423819,0.000179,2]
[404424160,1770130244323,-3069.31848682,0.000179,2]
[404424161,1770130244333,-179.39452399,0.000179,2]
[404424162,1770130244342,-16008.0,0.000179,2]
[404424163,1770130244352,-1000.0,0.00017904,7]
[404424164,1770130244362,-254.0,0.00017919,2]
[404424165,1770130244371,-1000.0,0.00017942,2]
[404424166,1770130244380,-4013.0,0.00017944,2]
[404424167,1770130244389,-1000.0,0.00017953,2]
[404424168,1770130244399,-150.0,0.00017961,2]
[404424169,1770130244410,-983.42551089,0.00017963,2]
[404424170,1770130244420,-152.0,0.00017973,4]
[404424171,1770130244429,-150.0,0.00017974,2]
[404424172,1770130244439,-824.69144558,0.0001799,2]
[404424173,1770130244451,-3732.4232578,0.00017995,2]
[404424174,1770130244462,-3196.717992,0.00017995,2]
[404424175,1770130244472,-159341.4227903,0.00017995,2]
[404424176,1770130244483,-327056.7915901,0.00017995,2]
[404424177,1770130244494,-151.0,0.00017997,2]
[404424178,1770130244504,-300.0,0.00017999,2]
[404424179,1770130244513,-300.0,0.00017999,2]
[404424180,1770130244523,-300.0,0.00017999,2]
[404424181,1770130244534,-300.0,0.00017999,2]
[404424182,1770130244543,-4221565.14721137,0.00018,2]
[404424184,1770130244984,-390.554,7.9e-05,2]
[404424185,1770130245118,-1.7e-07,7.9e-05,2]
[404424186,1770130245145,-509.44599983,7.9e-05,2]
[404424187,1770130245155,-4835429.93070636,0.00018,2]
[404424188,1770130245164,-2100221.83573075,0.00018,2]
[404424189,1770130245176,-2000.88772904,0.00018,2]
[404424190,1770130245185,-297.41562532,0.00018,2]
[404424191,1770130245195,-297.41562532,0.00018,2]
[404424192,1770130245204,-297.41562532,0.00018,2]
[404424193,1770130245213,-297.41562532,0.00018,2]
[404424194,1770130245224,-297.41562532,0.00018,2]
[404424195,1770130245234,-297.41562532,0.00018,2]
[404424196,1770130245244,-297.41562532,0.00018,2]
[404424197,1770130245256,-297.41562532,0.00018,2]
[404424198,1770130245266,-297.41562532,0.00018,2]
[404424199,1770130245276,-297.41562532,0.00018,2]
[404424200,1770130245290,-297.41562532,0.00018,2]
[404424201,1770130245299,-297.41562532,0.00018,2]
[404424202,1770130245309,-297.41562532,0.00018,2]
[404424203,1770130245319,-297.41562532,0.00018,2]
[404424204,1770130245328,-297.41562532,0.00018,2]
[404424205,1770130245338,-297.41562531,0.00018,2]
[404424206,1770130245351,-297.41562531,0.00018,2]
[404424207,1770130245360,-297.41562531,0.00018,2]
[404424208,1770130245369,-297.41562531,0.00018,2]
[404424209,1770130245379,-297.41562531,0.00018,2]
[404424210,1770130245388,-151.61,0.00018,2]
[404424211,1770130245397,-164.0,0.00018,5]
[404424212,1770130245407,-165.0,0.00018,5]
[404424213,1770130245416,-151.0,0.00018,2]
[404424214,1770130245428,-463.0,0.00018,2]
[404424215,1770130245438,-463.0,0.00018,2]
[404424216,1770130245447,-463.0,0.00018,2]
[404424217,1770130245456,-463.0,0.00018,2]
[404424218,1770130245467,-463.0,0.00018,2]
[404424219,1770130245476,-463.0,0.00018,2]
[404424220,1770130245486,-310.0,0.00018,2]
[404424221,1770130245496,-313797.36138127,0.00018,2]
[404424222,1770130245512,-943.06884868,0.00018,2]
[404424223,1770130245769,-302.0,8e-05,2]
[404424224,1770130245936,-898.0,8e-05,2]
[404424225,1770130245946,-1500.0,0.000119,4]
[404424226,1770130245955,-7934.45813047,0.00015623,2]
[404424227,1770130245964,-300.0,0.000175,6]
[404424228,1770130245973,-1203395.75045753,0.00018,2]
[404424229,1770130245984,-79795.98367197,0.00018,2]
[404424230,1770130246813,-485.0,0.0001028,2]
[404424231,1770130246823,-15.0,0.00018,2]
[404424232,1770130246871,-250.0,0.00018,2]
[404424233,1770130247596,-6969.70895053,0.00018,2]
[404424234,1770130247612,-879.4170014,0.00018,2]
[404424235,1770130247624,-1913.16903621,0.00018,2]
[404424236,1770130247645,-3585.71527356,0.00018,2]
[404424237,1770130247658,-5002.41055306,0.00018,2]
[404424238,1770130251735,-8381.30753204,7.754e-05,2]
[404424239,1770130251975,-10000.01,7.754e-05,2]
[404424240,1770130252151,-10000.01,7.754e-05,2]
[404424241,1770130252279,-10000.01,7.754e-05,2]
[404424242,1770130252395,-10000.01,7.754e-05,2]
[404424243,1770130252519,-10000.01,7.754e-05,2]
[404424244,1770130252690,-3161.252473,7.754e-05,2]